[Event "Fredericia WIM 2022"]
[Site "Fredericia"]
[Date "2022.05.28"]
[Round "7.1"]
[White "Dwilewicz, Katarzyna"]
[Black "Doluhanova, Evgeniya"]
[Result "1/2-1/2"]
[ECO "C54"]
[WhiteElo "2079"]
[BlackElo "2270"]
[Annotator "TA"]
[PlyCount "96"]
[EventDate "2022.05.25"]
[EventType "tourn"]
[EventCountry "DEN"]
[SourceTitle "playchess.com"]
[Source "ChessBase"]
[SourceQuality "1"]
[TimeControl "40/5400+30:1800+30"]

{[%evp 15,96,0,0,0,0,0,0,0,0,6,21,0,70,0,0,0,6,0,0,0,0,0,0,0,0,0,0,0,0,-9,0,0,0,0,0,0,0,0,0,0,0,-41,-37,-41,-44,-52,-51,-48,-43,-67,-69,-67,-40,-62,-54,-70,-75,-81,-69,-101,0,0,0,0,0,0,0,0,0,0,0,0,0,0,0,0,0,0,0,0,0,0,0]} 1. e4 {[%emt 0:00:02]} e5 {[%emt 0:02:48]} 2. Nf3 {[%emt 0:00:03]} Nc6 {[%emt 0:00:08]} 3. Bc4 {[%emt 0:00:13]} Bc5 {[%emt 0:00:09]} 4. c3 {[%emt 0:00:11]} Nf6 {[%emt 0:00:20]} 5. d4 {[%emt 0:00:40]} exd4 {[%emt 0:00:12]} 6. e5 {[%emt 0:00:06]} d5 {[%emt 0:00:33]} 7. Bb5 {[%emt 0:00:06]} Ne4 {[%emt 0:00:27]} 8. cxd4 {[%emt 0:00:28]} Bb6 {[%emt 0:00:09]} 9. Nc3 {[%emt 0:00:11] C54: Giuoco Piano: 4 c3 Nf6, main lines with 5 d4 and 5 d3.} Bg4 {[%emt 0:01:07]} 10. Be3 {[%emt 0:00:42]} O-O {[%emt 0:01:23]} 11. h3 {[%emt 0:00:09]} Bh5 {[%emt 0:03:30]} 12. Qc2 {[%emt 0:11:42]} Bg6 {[%emt 0:03:18] ...Nxc3 is the strong threat.} 13. Qb3 {[%emt 0:11:12]} Nxc3 {[%emt 0:06:08]} (13... Ne7) (13... Ne7 $11) 14. bxc3 $1 {[%emt 0:01:15][%mdl 4] outshines the older 14.Bxc6.} (14. Bxc6 bxc6 15. Qxc3) ({Better is} 14. Bxc6 $14 bxc6 15. Qxc3) 14... Na5 $11 {[%emt 0:00:40]} 15. Qd1 {[%emt 0:02:56]} c6 {[%emt 0:00:54]} 16. Be2 {[%emt 0:00:46][%cal Bb5e2,Be2f3,Bf3g4,Bg4d7][%mdl 32] [#]} f6 $146 {[%emt 0:01:07]} (16... Nc4 17. Bxc4 dxc4 18. O-O Qd5 19. a4 Ba5 20. Qc1 Be4 21. Ne1 f6 22. f3 Bg6) ({Predecessor:} 16... Nc4 17. Bxc4 dxc4 18. O-O Qd5 19. a4 Ba5 20. Qc1 Be4 21. Ne1 f6 22. f3 Bg6 {0-1 (31) Bosiocic,M (2599)-Predke,A (2622) St Petersburg 2018}) 17. O-O {[%emt 0:01:47]} Bc7 {[%emt 0:01:27]} 18. Bf4 {[%emt 0:09:46]} Be4 {[%emt 0:08:20]} 19. Bg3 {[%emt 0:01:09]} Bxf3 {[%emt 0:34:59]} 20. Bxf3 {[%emt 0:01:01]} fxe5 {[%emt 0:00:05]} 21. dxe5 {[%emt 0:02:57]} Qg5 {[%emt 0:00:23]} 22. Re1 {[%emt 0:06:52]} Rae8 {[%emt 0:01:16][%cal Ba8e8,Be8e7,Be7d7][%mdl 32]} 23. Qd4 {[%emt 0:08:38]} Bb6 {[%emt 0:09:29]} 24. Qg4 {[%emt 0:03:12]} Qxg4 {[%emt 0:03:22]} 25. Bxg4 {[%emt 0:00:19]} Nc4 {[%emt 0:00:05]} 26. Bd7 {[%emt 0:11:48]} Re7 $36 {[%emt 0:00:06][%mdl 2048] Black is pushing.} 27. e6 {[%emt 0:00:22]} g5 {[%emt 0:00:07] Against Bh4} 28. Rad1 {[%emt 0:04:36]} Bc5 {[%emt 0:01:27]} 29. h4 {[%emt 0:06:52]} Nb6 {[%emt 0:02:29]} 30. hxg5 {[%emt 0:00:52][%cal Oc3c4]} Nxd7 {[%emt 0:00:09]} 31. exd7 {[%emt 0:00:04]} Rxd7 {[%emt 0:00:05]} 32. Re6 {[%emt 0:11:49]} Rg7 {[%emt 0:02:48]} 33. Re5 {[%emt 0:00:41]} Rgf7 {[%emt 0:10:15][%cal Rc5f2]} 34. Rd2 {[%emt 0:00:27]} Rf5 {[%emt 0:00:23]} (34... Bd6 $5 {[%cal Rd6e5]} 35. g6 hxg6 $17) 35. Rde2 {[%emt 0:01:34]} Rxe5 {[%emt 0:00:24]} 36. Bxe5 $15 {[%emt 0:01:36][%mdl 4096] Endgame [#] KRB-KRB} Rf5 $1 {[%emt 0:01:13]} 37. Bf6 {[%emt 0:00:19] [#]} h6 {[%emt 0:04:05]} (37... Kf7 $1 $17 {[%cal Oh7h6]} 38. g3 h6) 38. Be7 $11 {[%emt 0:00:20] The position is equal.} Bxe7 {[%emt 0:02:12]} 39. Rxe7 {[%emt 0:00:02]} hxg5 {[%emt 0:00:19]} 40. Rxb7 {[%emt 0:00:06] KR-KR} Rf7 {[%emt 0:01:20]} 41. Rb8+ {[%emt 0:30:54]} Rf8 {[%emt 0:30:23]} 42. Rxf8+ {[%emt 0:00:44]} Kxf8 {[%emt 0:00:04] KP-KP} 43. f3 {[%emt 0:01:09]} Ke7 {[%emt 0:00:10]} 44. Kf2 {[%emt 0:00:01]} Ke6 {[%emt 0:00:23]} 45. g3 {[%emt 0:00:49]} Ke5 {[%emt 0:00:17]} 46. Ke3 {[%emt 0:00:08]} c5 {[%emt 0:00:17]} 47. Kd3 {[%emt 0:01:09]} Kf5 {[%emt 0:00:08]} 48. Ke3 {[%emt 0:00:53]} Ke5 {Weighted Error Value: White=0.09 (flawless) /Black=0.07 (flawless)} 1/2-1/2

[Event "Fredericia WIM 2022"]
[Site "Fredericia"]
[Date "2022.05.28"]
[Round "7.2"]
[White "Andersson, Christin"]
[Black "Lach, Aleksandra"]
[Result "0-1"]
[ECO "B34"]
[WhiteElo "2028"]
[BlackElo "2202"]
[Annotator "TA"]
[PlyCount "128"]
[EventDate "2022.05.25"]
[EventType "tourn"]
[EventCountry "DEN"]
[SourceTitle "playchess.com"]
[Source "ChessBase"]
[SourceQuality "1"]
[TimeControl "40/5400+30:1800+30"]

{[%evp 14,128,0,-57,-10,-10,-9,-21,2,-29,-26,-26,-16,-18,-22,-38,0,-33,-45,-43,15,11,0,0,10,36,51,47,101,51,58,47,61,47,36,39,75,-122,-97,-170,-179,-558,-215,-451,-441,-437,-439,-527,-513,-585,-583,-577,-568,-555,-560,-541,-562,-555,-551,-698,-548,-561,-555,-527,-526,-670,-670,-681,-658,-683,-615,-801,-788,-711,-723,-6662,-5635,-2110,-1833,-29976,-29968,-29974,-29970,-29977,-29978,-29979,-29980,-29980,-29981,-29984,-29985,-29995,-29991,-29995,-29982,-29982,-29982,-29983,-29984,-29984,-29982,-29983,-29984,-29986,-29985,-29990,-29989,-29989,-29990,-29992,-29993,-29993,-29994,-29993,-29993,-29993,-29994]} 1. e4 {[%emt 0:00:06]} c5 {[%emt 0:01:52]} 2. Nf3 {[%emt 0:00:06]} g6 {[%emt 0:00:26]} 3. d4 {[%emt 0:00:23]} cxd4 {[%emt 0:00:17]} 4. Nxd4 {[%emt 0:00:33]} Nc6 {[%emt 0:00:40]} 5. Nxc6 {[%emt 0:00:55]} bxc6 {[%emt 0:05:49]} 6. Qd4 {[%emt 0:00:37]} Nf6 {[%emt 0:00:29]} 7. e5 {[%emt 0:01:21]} Nd5 {[%emt 0:00:28]} 8. Bc4 {[%emt 0:06:42]} (8. Nc3 $11) 8... Qb6 {[%emt 0:11:21] B34: Sicilian: Accelerated Dragon with 5 Nc3: sidelines.} (8... Bg7) (8... Bg7 $15) 9. c3 $11 {[%emt 0:05:17]} Bg7 {[%emt 0:24:32]} 10. O-O {[%emt 0:03:32] [#]} Qc7 $146 {[%emt 0:03:44] The position is equal.} ({Predecessor:} 10... Qxd4 11. cxd4 Nb4 12. Na3 a5 13. Bd2 Ba6 14. Bxa6 Rxa6 15. Bxb4 axb4 16. Nc2 Rb6 {0-1 (55) Durette,F (2156)-Huang,Q (2209) Montreal 2017}) 11. f4 {[%emt 0:02:56]} O-O {[%emt 0:04:53]} 12. Nd2 {[%emt 0:05:45][%cal Bb1d2,Bd2f3,Bf3g5][%mdl 32]} d6 {[%emt 0:02:04][%cal Rd6e5]} 13. Nf3 {[%emt 0:02:53]} Nb6 {[%emt 0:02:27]} 14. Bb3 {[%emt 0:03:45]} Bg4 {[%emt 0:05:27]} 15. Ng5 {[%emt 0:02:16][%cal Of4f5]} c5 {[%emt 0:00:49]} 16. Qf2 {[%emt 0:01:42]} c4 {[%emt 0:03:27]} ({Black should play} 16... Bf5 $1 $15) 17. Bc2 {[%emt 0:01:34]} ({Don't play} 17. Qh4 h5 18. Bc2 dxe5 $15) 17... h6 {[%emt 0:01:00]} 18. exd6 {[%emt 0:01:29]} exd6 {[%emt 0:03:40]} 19. Nf3 {[%emt 0:01:42][%cal Of4f5]} Bxf3 {[%emt 0:01:30]} 20. Qxf3 {[%emt 0:00:08]} f5 {[%emt 0:00:29]} (20... Nd7 $14) 21. Be3 {[%emt 0:01:38]} ({Better is} 21. g4 $1 $16) 21... Rae8 {[%emt 0:01:41][%cal Ba8e8,Be8e6,Be6e2][%mdl 32]} 22. Rad1 {[%emt 0:01:16]} Re6 {[%emt 0:00:20]} 23. a4 {[%emt 0:03:19]} Rfe8 {[%emt 0:03:57]} 24. Bf2 {[%emt 0:00:19]} Nd7 {[%emt 0:03:02] [#]} 25. Rd5 $2 {[%emt 0:04:19]} (25. g4 $1 $16 {stays on course.}) 25... Re2 $17 {[%emt 0:01:10] Black continues to play with concentration.} 26. Rc1 {[%emt 0:02:19]} (26. Bb1 $17) 26... Nf6 $36 {[%emt 0:00:39][%mdl 2048] Black is really pushing.} 27. Rdd1 $2 {[%emt 0:04:24] [#]} (27. Rb5 {is tougher.}) 27... Ng4 $2 {[%emt 0:00:58]} (27... Rxf2 $1 {[%mdl 512]} 28. Qxf2 Ng4) 28. Bg3 $2 {[%emt 0:06:11]} (28. Re1 {might work better.} Rxe1+ 29. Rxe1 Rxe1+ 30. Bxe1) 28... Qb6+ {[%emt 0:03:23]} 29. Kh1 {[%emt 0:00:47]} Qxb2 {[%emt 0:00:15]} 30. Qd5+ {[%emt 0:03:11]} Kh8 {[%emt 0:00:22] Strongly threatening ...Ne3.} 31. Qf7 {[%emt 0:02:23]} Rf8 {[%emt 0:00:29]} 32. Qxc4 {[%emt 0:03:08]} Rxc2 {[%emt 0:01:28]} 33. Rb1 {[%emt 0:00:22]} Qxc3 {[%emt 0:00:32]} 34. Qxc3 {[%emt 0:00:17]} Rxc3 {[%emt 0:00:01]} 35. Rxd6 {[%emt 0:00:21]} Rfc8 {[%emt 0:00:29]} 36. h3 {[%emt 0:01:37]} Rc1+ {[%emt 0:02:41]} 37. Rd1 {[%emt 0:00:17]} Rxd1+ {[%emt 0:00:07]} 38. Rxd1 {[%emt 0:00:07]} Ne3 {[%emt 0:00:49]} 39. Rb1 {[%emt 0:02:20]} Rc2 {[%emt 0:01:53] Inhibits Bf2.} 40. Bh2 {[%emt 0:00:46]} Nxg2 {[%emt 0:02:50]} 41. Bg1 {[%emt 0:30:41]} Nh4 {[%emt 0:30:43]} 42. Bxa7 {[%emt 0:02:59]} Nf3 {[%emt 0:00:39][%csl Gf3][%cal Rc2h2]} 43. Bg1 {[%emt 0:00:12] Against Rh2+} Ra2 {[%emt 0:01:00]} 44. Rf1 {[%emt 0:03:07]} Nxg1 {[%emt 0:00:23]} 45. Kxg1 {[%emt 0:00:06]} Rxa4 {[%emt 0:00:06][%mdl 4096] Endgame ( -> ...Ra1). KRB-KR} 46. h4 {[%emt 0:00:33]} h5 {[%emt 0:00:32] Black mates.} 47. Kg2 {[%emt 0:00:14]} Bf6 {[%emt 0:00:06]} 48. Kg3 {[%emt 0:00:29]} Ra3+ {[%emt 0:00:04]} 49. Kh2 {[%emt 0:00:04]} Bxh4 {[%emt 0:00:04]} 50. Rb1 {[%emt 0:00:21]} Bg3+ {[%emt 0:01:38]} 51. Kh3 {[%emt 0:00:27]} Bxf4+ {[%emt 0:00:14]} 52. Kh4 {[%emt 0:00:19]} Ra4 {[%emt 0:00:44]} 53. Rb7 {[%emt 0:00:34]} Bh6+ {[%emt 0:00:28]} 54. Kg3 {[%emt 0:00:13]} Bg7 {[%emt 0:00:05]} 55. Kh3 {[%emt 0:00:18]} Kh7 {[%emt 0:00:03]} 56. Kg3 {[%emt 0:00:12]} Kh6 {[%emt 0:00:09]} 57. Kh3 {[%emt 0:00:05]} Ra3+ {[%emt 0:00:12]} 58. Kh2 {[%emt 0:00:07]} Be5+ {[%emt 0:00:55]} 59. Kh1 {[%emt 0:00:06]} h4 {[%cal Bh5h4,Bh4h3][%mdl 32]} 60. Re7 {[%emt 0:00:47]} Bg3 {[%emt 0:01:09]} 61. Rd7 {[%emt 0:01:57]} h3 {[%emt 0:02:01]} 62. Rd1 {[%emt 0:00:30]} Ra2 {[%emt 0:00:12]} 63. Rf1 {[%emt 0:00:47]} Kh5 {[%emt 0:00:44]} 64. Rd1 {[%emt 0:00:25]} Re2 {[%emt 0:00:26] Weighted Error Value: White=0.58/Black=0.31} 0-1

[Event "Fredericia WIM 2022"]
[Site "Fredericia"]
[Date "2022.05.28"]
[Round "7.3"]
[White "Goossens, Hanne"]
[Black "Durrfeld, Sofie Bech"]
[Result "1-0"]
[ECO "D00"]
[WhiteElo "2184"]
[BlackElo "1773"]
[Annotator "TA"]
[PlyCount "55"]
[EventDate "2022.05.25"]
[EventType "tourn"]
[EventCountry "DEN"]
[SourceTitle "playchess.com"]
[Source "ChessBase"]
[SourceQuality "1"]
[TimeControl "40/5400+30:1800+30"]

{[%evp 9,55,-29,-36,-39,-28,-39,-26,-26,-1,-29,-4,-42,-41,-37,-23,-51,-48,-77,-80,-139,-32,-17,-2,-93,-91,-116,-70,-166,-132,-146,-59,-65,-57,-87,170,161,416,421,656,577,564,559,562,559,625,631,592,579]} 1. d4 {[%emt 0:00:09]} d5 {[%emt 0:00:20]} 2. Nc3 {[%emt 0:00:05]} e6 {[%emt 0:01:24]} 3. Bf4 {[%emt 0:00:51]} Bb4 {[%emt 0:01:18]} 4. e3 {[%emt 0:00:57]} Nf6 {[%emt 0:00:20]} 5. Bd3 {[%emt 0:02:11]} c5 {[%emt 0:00:51]} 6. dxc5 {[%emt 0:05:38] D00: 1 d4 d5: Unusual lines.} Nbd7 {[%emt 0:01:30]} 7. Nge2 {[%emt 0:02:10]} O-O {[%emt 0:04:44]} 8. O-O {[%emt 0:02:19] Black has an edge.} Nxc5 {[%emt 0:06:21]} 9. Bg5 {[%emt 0:04:14]} Nxd3 {[%emt 0:04:24]} 10. Qxd3 {[%emt 0:01:31] [#]} b6 $146 {[%emt 0:03:37]} ({Predecessor:} 10... Be7 11. Rad1 Re8 12. Bxf6 Bxf6 13. e4 dxe4 14. Qb5 Qe7 15. Nxe4 Rd8 16. Rxd8+ Qxd8 17. Nxf6+ gxf6 {1-0 (79) Gagunashvili,M (2588)-Lei,T (2468) Subic Bay 2016}) 11. Rfd1 {[%emt 0:10:29]} Bb7 {[%emt 0:03:29]} 12. a3 {[%emt 0:09:01]} Bd6 {[%emt 0:00:32][%cal Od6h2]} 13. e4 {[%emt 0:03:50] [#]} Bxh2+ $1 {[%emt 0:02:49] This bishop pair is nice.} 14. Kf1 {[%emt 0:05:29]} (14. Kxh2 $142 Ng4+ 15. Kg1 Qxg5 16. exd5) 14... Bd6 {[%emt 0:06:16]} (14... dxe4 15. Qh3 Qc7 16. Bxf6 (16. g3 Nd5 $16) 16... gxf6 17. g3 $16) (14... h6 $17 15. Bh4 Be5 16. exd5 exd5) 15. exd5 $15 {[%emt 0:02:11]} exd5 {[%emt 0:01:09]} 16. Qf5 {[%emt 0:03:35] [#]} (16. Nxd5 $11 Bxd5 17. Qxd5 Nxd5 18. Bxd8 Ne3+ 19. fxe3 Raxd8 20. Kf2) 16... Be7 $1 $17 {[%emt 0:12:19]} 17. Rd4 {[%emt 0:06:12]} Qc8 {[%emt 0:04:57]} ({Black should play} 17... Re8 $17 18. Kg1 Qc8) 18. Qd3 {[%emt 0:03:53]} (18. Qxc8 $1 $15 Rfxc8 19. Ng3) 18... Ba6 {[%emt 0:04:53]} 19. Qf3 {[%emt 0:01:45]} Qe6 {[%emt 0:05:26]} ({Black should try} 19... Re8 $17 {[%cal Of6e4] White must now prevent ...Ne4!} 20. Kg1 Bxe2 21. Nxe2 h6) 20. Kg1 $15 {[%emt 0:05:12]} Qe5 {[%emt 0:06:33]} 21. Bh4 {[%emt 0:03:35]} Ne4 $2 {[%emt 0:03:42][%mdl 8192] This costs Black the game.} (21... Rfe8 $17 22. Bg3 Qh5) 22. Rxd5 $18 {[%emt 0:06:10][%cal Bd4d5,Bd5e5,Be5e3][%mdl 32]} Nd2 $2 {[%emt 0:07:30]} (22... Qe6 23. Nf4 (23. Nxe4 Bxe2 24. Qxe2 Bxh4 $11) (23. Qxe4 Qxe4 24. Nxe4 Bxh4 $11) 23... Bxh4 24. Nxe6 fxe6 25. Qxe4 Bxf2+ 26. Kh2 exd5 27. Qxd5+ Kh8) 23. Qh3 {[%emt 0:03:42]} (23. Rxe5 Nxf3+ 24. gxf3 Bxh4 $17) 23... Bc8 {[%emt 0:08:16]} (23... Qe6 $142) 24. Rxe5 {[%emt 0:00:36]} Bxh3 {[%emt 0:00:21]} 25. Bxe7 {[%emt 0:00:29]} ({Stronger than} 25. gxh3 Nf3+ 26. Kh1 (26. Kg2 Nxh4+ 27. Kf1 Bf6 $11) 26... Bxh4 $11) 25... Rfe8 {[%emt 0:00:24]} 26. b3 {[%emt 0:04:07]} f6 {[%emt 0:00:45]} 27. Re3 {[%emt 0:00:53]} ({Less strong is} 27. gxh3 Nf3+ 28. Kg2 Nxe5 $16) 27... Bf5 {[%emt 0:01:32]} 28. Nd4 {[%emt 0:01:34] Weighted Error Value: White=0.24 (precise) /Black=0.61} 1-0

[Event "Fredericia WIM 2022"]
[Site "Fredericia"]
[Date "2022.05.28"]
[Round "8.1"]
[White "Durrfeld, Sofie Bech"]
[Black "Dwilewicz, Katarzyna"]
[Result "0-1"]
[ECO "C24"]
[WhiteElo "1773"]
[BlackElo "2079"]
[Annotator "TA"]
[PlyCount "76"]
[EventDate "2022.05.25"]
[EventType "tourn"]
[EventCountry "DEN"]
[SourceTitle "playchess.com"]
[Source "ChessBase"]
[SourceQuality "1"]
[TimeControl "40/5400+30:1800+30"]

{[%evp 12,76,0,0,25,25,24,27,41,25,58,60,80,48,33,-17,-12,-10,135,130,187,171,181,175,307,277,283,120,124,117,186,168,191,194,176,-18,-7,-89,-98,-100,-83,-88,-74,-79,-83,-79,-71,-591,-597,-591,-587,-580,-581,-558,-563,-559,-549,-545,-477,-474,-475,-536,-474,-468,-463,-617,-599]} 1. e4 {[%emt 0:00:03]} e5 {[%emt 0:00:12]} 2. Bc4 {[%emt 0:00:10]} Nf6 {[%emt 0:00:06]} 3. d3 {[%emt 0:00:05]} c6 {[%emt 0:00:05]} 4. Nf3 {[%emt 0:00:07]} d5 {[%emt 0:01:00]} 5. Bb3 {[%emt 0:00:15]} Bd6 {[%emt 0:01:19]} 6. Nc3 {[%emt 0:01:24]} d4 $1 {[%emt 0:03:35][%mdl 4] now scores much better than the old 6...dxe4.} 7. Ne2 {[%emt 0:00:16]} Nbd7 {[%emt 0:02:11] C24: Bishop's Opening: 2...Nf6.} 8. c3 {[%emt 0:02:16]} dxc3 {[%emt 0:00:55]} 9. bxc3 {[%emt 0:00:14]} O-O {[%emt 0:01:35] White has an edge.} 10. O-O {[%emt 0:00:54] [#]} b6 $146 {[%emt 0:04:40]} ({Predecessor:} 10... h6 11. Ng3 Re8 12. Be3 Qc7 13. Nh4 Nc5 14. Nhf5 Nxb3 15. axb3 Bf8 16. f4 exf4 17. Bxf4 {1-0 (28) Pisani,C (1972)-Albesa,A (1882) ICCF email 2021}) 11. Ng3 {[%emt 0:01:12]} Nc5 {[%emt 0:05:30]} 12. Bc2 {[%emt 0:00:28]} Re8 {[%emt 0:05:41]} 13. Nh4 {[%emt 0:07:33]} (13. Re1 $14) 13... Bf8 $11 {[%emt 0:07:13][%cal Of6e4]} 14. Nhf5 {[%emt 0:03:30]} h6 {[%emt 0:20:18]} (14... Ba6 $11 {remains equal.}) 15. f4 $1 $16 {[%emt 0:06:53]} exf4 {[%emt 0:06:24]} (15... Ba6 $16) 16. Bxf4 $18 {[%emt 0:00:31]} Ba6 {[%emt 0:16:00][%cal Ra6d3]} 17. e5 $1 {[%emt 0:17:23]} Nh7 {[%emt 0:07:12]} (17... Nd5 $142) 18. Qg4 {[%emt 0:07:48] And now Nxh6+ would win.} Kh8 {[%emt 0:00:38]} 19. Nd6 {[%emt 0:07:26]} (19. d4 $18) 19... Bxd6 $16 {[%emt 0:00:47]} 20. exd6 {[%emt 0:00:20] Threatens to win with Nh5.} Nf6 {[%emt 0:09:05] [#]} (20... Ne6 $16) 21. Qf3 $1 $18 {[%emt 0:02:37]} Nd5 {[%emt 0:00:27] [#]} 22. Bd2 {[%emt 0:08:14] Black must now prevent Nf5.} Qxd6 {[%emt 0:00:24]} 23. Qxf7 {[%emt 0:00:59]} (23. c4 $18) 23... Rf8 $36 {[%emt 0:01:17][%mdl 2048] Black fights for an advantage.} 24. Qh5 {[%emt 0:00:16]} (24. Nf5 $11 Rxf7 25. Nxd6 Rxf1+ 26. Rxf1) 24... Bxd3 $17 {[%emt 0:01:25]} 25. Bxd3 {[%emt 0:01:21]} Nxd3 {[%emt 0:00:02]} 26. Nf5 {[%emt 0:06:23]} Qc5+ {[%emt 0:01:17]} 27. Nd4 {[%emt 0:04:16][%cal Od2h6]} Nxc3 {[%emt 0:02:27] Black is much more active. The white rooks are badly placed. Pair of Knights!} 28. Qxc5 {[%emt 0:06:24]} bxc5 {[%emt 0:00:07]} 29. Ne6 {[%emt 0:01:38][%mdl 8192]} (29. Bxc3 $17 {prevents the worst.} cxd4 30. Bxd4) 29... Ne2+ $19 {[%emt 0:00:22] Black is clearly winning.} 30. Kh1 {[%emt 0:00:09]} Nf2+ {[%emt 0:00:54]} 31. Rxf2 {[%emt 0:00:08]} Rxf2 {[%emt 0:00:03]} 32. Be3 {[%emt 0:00:45]} Rf5 {[%emt 0:02:00]} 33. Bxc5 {[%emt 0:02:48]} Re8 {[%emt 0:01:04]} 34. Nc7 {[%emt 0:00:17]} Rc8 {[%emt 0:00:25]} 35. Na6 {[%emt 0:00:42]} Nc3 {[%emt 0:00:42]} 36. Bd4 {[%emt 0:00:39]} Nb5 {[%emt 0:00:29]} 37. Bg1 {[%emt 0:01:50]} c5 {[%emt 0:00:15]} 38. Rb1 {[%emt 0:00:34]} Nc3 {[%emt 0:00:42] Black used his chance.  Weighted Error Value: White=0.45/Black=0.31} 0-1